Cogmind - Beta 17 @@@ ROGUE MODE // 2026.07.03 @ 20:24:01 Player: THN-L0C Result: Destroyed by as-46535 with Assembled Blade Performance ------------- Evolutions (0) 0 Regions Visited (2) 400 Robots Destroyed (20) 100 Value Destroyed (449) 449 Prototype IDs (0) 0 Alien Tech Used (0) 0 Bonus (0) 0 TOTAL SCORE: 949 Bonus ------- None Cogmind --------- Core Integrity 0/250 Matter 300/300 Energy 95/100 System Corruption 0% Temperature Cool (24) Movement Core (250) Ox4 Location -10/Mines Parts ------- > --- POWER (1) -------- (None) > --- PROPULSION (2) --- Light Treads > --- UTILITY (2) ------ Medium Storage Unit > --- WEAPON (2) ------- Medium Laser Medium Laser > --- INVENTORY (10) --- Large Matter Pod (150) High-capacity Matter Pod (101) Improved Terrain Scanner Seismic Detector Reaction Control System Utility Shielding Improved Light Armor Plating EM Pulse Cannon Mining Laser Peak State ------------ > --- POWER ------------ Light Deuterium Engine > --- PROPULSION ------- Light Treads Light Treads > --- UTILITY ---------- Medium Storage Unit Improved Light Armor Plating > --- WEAPON ----------- Medium Laser Medium Laser > --- INVENTORY -------- Light Treads Wheel Large Matter Pod High-capacity Matter Pod Improved Terrain Scanner Seismic Detector Utility Shielding Light Armor Plating Light Assault Rifle Mining Laser [Rating: 12] Favorites ----------- Power Ion Engine Engine Ion Engine Propulsion Light Treads Treads Light Treads Utility Medium Storage Unit Device Seismic Detector Storage Medium Storage Unit Protection Light Armor Plating Weapon Medium Laser Energy Gun Medium Laser Ballistic Gun Assault Rifle Special Weapon Mining Laser Build | -11 -10 -10 ------- Run | Yrd Mat Min Slots Evolved . | . . . Power . | . . . Propulsion . | . . . Utility . | . . . Weapon . | . . . Parts Attached 16 | 8 6 2 Power 3 | 2 . 1 Engine 3 | 2 . 1 Core . | . . . Reactor . | . . . Propulsion 3 | 2 1 . Treads 3 | 2 1 . Leg . | . . . Wheel . | . . . Hover . | . . . Flight . | . . . Utility 5 | 2 2 1 Device 1 | 1 . . Storage 2 | 1 1 . Processor . | . . . Hackware . | . . . Protection 2 | . 1 1 Artifact . | . . . Weapon 5 | 2 3 . Energy Gun 2 | . 2 . Energy Cannon . | . . . Ballistic Gun 2 | 2 . . Ballistic Cannon . | . . . Launcher . | . . . Special Weapon 1 | . 1 . Impact Weapon . | . . . Slashing Weapon . | . . . Piercing Weapon . | . . . Special Melee Weapon . | . . . Unidentified Prototypes . | . . . Parts Lost 5 | . 1 4 Power 2 | . 1 1 Propulsion 2 | . . 2 Utility 1 | . . 1 Weapon . | . . . Highest Loss Streak 2 | . 1 2 To Critical Strikes . | . . . Average Backups 7 | 1 7 9 Power . | . 1 . Propulsion 1 | . 1 1 Utility 4 | . 3 5 Weapon 1 | . 1 2 Tool/Special . | . . . Unused Backups 9 | . . 9 Power . | . . . Propulsion 1 | . . 1 Utility 6 | . . 6 Weapon 2 | . . 2 Tool/Special . | . . . Average Slot Usage (%) 97 | . 99 93 Engine 11 | . 13 9 Treads 27 | . 28 27 Device 7 | . 11 . Storage 14 | . 14 14 Protection 6 | . 2 13 Energy Gun 14 | . 6 28 Ballistic Gun 12 | . 20 . Peak Build Rating 12 | 7 8 12 Average Rating 7 | 5 7 8 On Entrance 4 | . 7 7 Avg Prop Armor Cover (%) 9 | . . 9 Naked Turns . | . . . Heaviest Build 22 | 14 22 22 Greatest Support 40 | 40 40 40 Greatest Overweight (x) 1 | . . 1 Average Overweight (x) . | . . . Largest Inventory Capacity 10 | 8 10 10 Average Capacity 9 | 7 9 10 Most Carried 10 | 4 10 10 Average Carried 7 | 1 7 9 Final Capacity 10 | 8 10 10 Final Carried 10 | 4 10 9 Class Distribution -------------------- 100% | Mutant Dominant Class ---------------- Mutant | -10/Materials Mutant | -10/Mines Resources | -11 -10 -10 ----------- Run | Yrd Mat Min Matter Collected 856 | 312 233 311 Remotely . | . . . Salvage Created 665 | 149 330 186 Parts 39 | 7 31 1 Haulers Intercepted 1 | . 1 . Recyclers Shooed 1 | 1 . . Parts Field Recycled . | . . . Retrieved Matter . | . . . Parts Self-Destructed . | . . . Prevented . | . . . Parts Restored . | . . . Kills | -11 -10 -10 ------- Run | Yrd Mat Min Combat Hostiles Destroyed 16 | . 10 6 Guns 15 | . 10 5 Classes Destroyed 8 | 2 4 2 Tunneler 2 | 2 . . Hauler 1 | . 1 . Recycler 1 | 1 . . Watcher 1 | . 1 . Swarmer 6 | . 6 . Grunt 8 | . 4 4 Demolisher 1 | . . 1 Assembled 1 | . . 1 Best Kill Streak 4 | 2 4 2 Combat Bots Only 4 | . 4 2 Max Kills in Single Turn 1 | 1 1 1 Gunslinging . | . . . Exploded . | . . . Melee . | . . . Uniques/NPCs Destroyed . | . . . Combat | -11 -10 -10 -------- Run | Yrd Mat Min Hostile Shots Fired 115 | . 57 58 Missed 27 | . 15 12 Hits 88 | . 42 46 Melee 5 | . . 5 Projectile 83 | . 42 41 AOE 8 | . . 8 Damage Taken 1325 | . 420 905 Core 269 | . 55 214 Absorbed by Shields . | . . . Core Remaining (%) 100 | 100 . . Volleys Fired 70 | 8 37 25 Largest 2 | 2 2 2 Hottest 100 | 40 100 100 Shots Fired 138 | 16 72 50 Gun 136 | 16 70 50 Cannon . | . . . Launcher . | . . . Special 2 | . 2 . Kinetic 62 | 16 46 . Thermal 76 | . 26 50 Explosive . | . . . Electromagnetic . | . . . Robot Hit Streak 9 | 5 9 5 Robot Miss Streak 5 | 1 5 2 Penetration Max . | . . . Secondary Targets 2 | . 1 1 Max Gunslinging Chain 1 | . 1 1 Shots Hit Robots 86 | 10 42 34 Core Hits 37 | 4 21 12 Critical Kills . | . . . Critical Parts Destroyed . | . . . Critical Strikes 7 | . 2 5 Burn 7 | . 2 5 Melee Attacks . | . . . Impact . | . . . Slashing . | . . . Piercing . | . . . Sneak Attacks . | . . . Combat Hostiles . | . . . Follow-up Attacks . | . . . Damage Inflicted 993 | 98 472 423 Guns 993 | 98 472 423 Cannons . | . . . Explosions . | . . . Melee . | . . . Ramming . | . . . Kinetic 386 | 98 288 . Thermal 607 | . 184 423 Explosive . | . . . Electromagnetic . | . . . Impact . | . . . Slashing . | . . . Piercing . | . . . Highest Corruption . | . . . Average Corruption . | . . . Corruption Purged . | . . . Corruption Blocked . | . . . Overload Shots . | . . . Overflow Damage . | . . . Projectiles . | . . . Explosions . | . . . Melee . | . . . Knockbacks . | . . . Impact . | . . . Kinetic . | . . . Secondary . | . . . Self-Inflicted Damage . | . . . Shots . | . . . Rammed . | . . . Targets Rammed . | . . . Kicked . | . . . Crushed . | . . . Highest Temperature 508 | . 204 508 Average Temperature 146 | . 63 205 Received Heat Transfer 336 | . 117 219 Effects 9 | . . 9 Shutdowns 3 | . . 3 Energy Bleed 2 | . . 2 Matter Decay 2 | . . 2 Short Circuit 1 | . . 1 Damage (minor) 1 | . . 1 Siege Activations . | . . . Martial Activations . | . . . Shielding Activations . | . . . Robots Disrupted . | . . . Combat Hostiles . | . . . Robots Corrupted . | . . . Combat Hostiles . | . . . Parts Fried . | . . . Impact Corruptions . | . . . Robots Melted 1 | . . 1 Combat Hostiles 1 | . . 1 Parts Melted 7 | . 2 5 Heat Transferred 2331 | . 703 1628 Parts Sabotaged . | . . . Parts Stolen . | . . . Parts Stripped . | . . . Power Chain Reactions . | . . . Alert | -11 -10 -10 ------- Run | Yrd Mat Min Maximum Alert Level . | . . . Low Security (%) 100 | 100 100 100 Level 1 . | . . . Level 2 . | . . . Level 3 . | . . . Level 4 . | . . . Level 5 . | . . . High Security . | . . . Max Security . | . . . Peak Influence 90 | 10 90 40 Initial 16 | . . 16 Average 20 | . 33 6 Influence Increases 421 | 15 296 110 Destroy 0b10 Robot/C 300 | . 200 100 Destroy 0b10 Robot/NC 25 | 15 10 . Destroy Leader 54 | . 44 10 Successful Hack 8 | . 8 . Destroy Structure 4 | . 4 . Lose Combat Pursuer 30 | . 30 . Influence Decreases 421 | 15 252 154 Entered New Map 28 | . . 28 Time Decay 363 | 15 242 106 Lost Part 30 | . 10 20 Squads Dispatched 3 | . 2 1 Investigation 2 | . 1 1 Extermination . | . . . Reinforcement 1 | . 1 . Assault . | . . . Garrison . | . . . Intercept . | . . . Searches Triggered . | . . . Construction Impeded . | . . . Haulers Reinforced . | . . . Active Scanning Responses . | . . . Cargo Convoy Interrupts . | . . . Stealth | -11 -10 -10 --------- Run | Yrd Mat Min Distress Signals 3 | . 1 2 Communications Jammed . | . . . Distress Signals . | . . . Times Spotted 26 | . 17 9 Peak Tracking Total 4 | . 4 4 Tactical Retreats 1 | . 1 . Traps | -11 -10 -10 ------- Run | Yrd Mat Min Traps Triggered 1 | . 1 . Indirectly . | . . . Trap Hack Attempts . | . . . Triggered . | . . . Disarmed . | . . . Reprogrammed . | . . . Reused . | . . . Traps Extracted . | . . . Installed . | . . . Triggered . | . . . Machines | -11 -10 -10 ---------- Run | Yrd Mat Min Machines Disabled . | . . . Max in Single Turn . | . . . Machines Repaired . | . . . Machines Dismantled . | . . . Machines Sabotaged . | . . . Overloaded Fab Kills . | . . . Hacking | -11 -10 -10 --------- Run | Yrd Mat Min Machines Accessed 5 | . 4 1 Terminals 4 | . 4 . Fabricators . | . . . Repair Stations . | . . . Recycling Units . | . . . Scanalyzers . | . . . Garrison Access . | . . . Total Hacks 11 | . 10 1 Successful 8 | . 7 1 Failed 3 | . 3 . Catastrophic . | . . . Database Lockouts . | . . . Manual 9 | . 9 . Terminals 10 | . 10 . Fabricators . | . . . Repair Stations . | . . . Recycling Units . | . . . Scanalyzers . | . . . Garrison Access . | . . . Terminal Hacks 2 | . 1 1 Open Door 1 | . . 1 Locate Traps 1 | . 1 . Fabricator Hacks . | . . . Repair Station Hacks . | . . . Recycling Unit Hacks . | . . . Scanalyzer . | . . . Garrison Access Hacks . | . . . Unauthorized Hacks 6 | . 6 . Terminals 6 | . 6 . Botnet 4 | . 4 . Skim 2 | . 2 . Fabricators . | . . . Repair Stations . | . . . Recycling Units . | . . . Scanalyzers . | . . . Garrison Access . | . . . Data Cores Recovered . | . . . Used . | . . . Hacking Detections 4 | . 4 . Full Trace Events . | . . . Feedback Events . | . . . Feedback Blocked . | . . . Robot Schematics Acquired . | . . . Robots Built . | . . . Authchips . | . . . Time . | . . . Total Robot Build Rating . | . . . Part Schematics Acquired . | . . . Parts Built . | . . . Authchips . | . . . Time . | . . . Total Part Build Rating . | . . . Part Studies Acquired . | . . . Parts Repaired . | . . . Time . | . . . Parts Recycled . | . . . Recycled Matter . | . . . Retrieved Matter . | . . . Retrieved Components . | . . . Parts Scanalyzed . | . . . Part Schematics Acquired . | . . . Parts Damaged . | . . . Bothacking | -11 -10 -10 ------------ Run | Yrd Mat Min Used RIF Installer . | . . . Robots Hacked . | . . . Non-combat . | . . . Combat . | . . . Robot Hacks Applied . | . . . Relay Couplers Released . | . . . Fabnet Peak Effective % . | . . . Robots Rewired . | . . . Allies Hacked . | . . . Hacks Repelled . | . . . Allies | -11 -10 -10 -------- Run | Yrd Mat Min Total Allies . | . . . Largest Group . | . . . Highest-Rated Group . | . . . Highest-Rated Ally . | . . . Total Orders . | . . . Ally Attacks . | . . . Total Damage . | . . . Kills . | . . . Allies Corrupted . | . . . Allies Melted . | . . . Intel | -11 -10 -10 ------- Run | Yrd Mat Min Active Infowar (turns) 769 | 47 722 . Seismic 769 | 47 722 . Robot Analysis Total . | . . . Derelict Logs Recovered 1 | . . 1 Drone Launches . | . . . Drone Recoveries . | . . . Exploration | -11 -10 -10 ------------- Run | Yrd Mat Min Turns Passed 1551 | 131 874 546 Spaces Moved 780 | 60 445 275 Core 3 | 3 . . Treads 777 | 57 445 275 Legs . | . . . Wheels . | . . . Hover . | . . . Flight . | . . . Fastest Speed 50 | 50 160 160 Average Speed 160 | 154 160 162 Slowest Speed 240 | 160 160 240 Overloaded Moves . | . . . Propulsion Burnouts . | . . . Robots Hopped . | . . . Potential Cave-ins . | . . . Cave-ins Triggered . | . . . Exploration Rate (%) 35 | 4 57 44 Regions Visited 2 Branch Regions 1 Pre-discovered Areas . | . . . Known Exits Taken . | . . . Unknown Exits Taken 2 | 1 1 . Scrap Searched 1 | . . 1 Spaces Dug 2 | . 2 . Terrain Destroyed 2 | . 2 . Melee . | . . . Projectile 2 | . 2 . AOE . | . . . Terrain Rammed . | . . . Walls Destroyed . | . . . Machines Disabled . | . . . Actions | -11 -10 -10 --------- Run | Yrd Mat Min Total 939 | 80 534 325 Wait 52 | 2 38 12 Move 778 | 59 444 275 Hop . | . . . Pick Up 12 | 3 6 3 Fast Attach 8 | 7 . 1 Attach 1 | . . 1 Detach . | . . . Swap 11 | 1 7 3 Drop 7 | . 2 5 Fire 70 | 8 37 25 Melee . | . . . Ram . | . . . Kick . | . . . Crush . | . . . Escape Stasis . | . . . Rewire . | . . . Trap . | . . . Miscellaneous . | . . . Route ------- -11/Scrapyard -10/Materials (discovered 2 exits: [*Mat] / *Min) -10/Mines (discovered 1 exit: [*Mat]) History --------- Turn | Location | Event 48 | -11/Scrapyard | Discovered new exit (range 16) 132 | -11/Scrapyard | Entered Materials 316 | -10/Materials | Build established: Mutant 571 | -10/Materials | Discovered new exit (range 15) 935 | -10/Materials | Discovered new exit (range 15) 1006 | -10/Materials | Entered Mines 1014 | -10/Mines | Discovered new exit (range 8) 1016 | -10/Mines | Met a Derelict bent on vengeance 1160 | -10/Mines | Learned 8 Materials zone layouts 1265 | -10/Mines | Assembled infested the area 1276 | -10/Mines | Met a Derelict shopkeep closing up shop 1317 | -10/Mines | Core integrity fell below 50% 1354 | -10/Mines | Core integrity fell below 20% 1552 | -10/Mines | Destroyed by as-46535 with Assembled Blade Last Messages --------------- here?" 01415_ 0H-E45(g): "Well, at least you look like you can take care of yourself!" 01417_ 0H-E45(g): "I have the funny feeling that things are about to get a lot worse around here, see you around!" 01417_ 0H-E45(g) slips back into the shadows. 01487_ The unstable cave ceiling collapses. 01495_ Acquired 35 matter. 01496_ Acquired 48 matter. 01501_ as-09924 destroyed. 01507_ K-01 Serf collects debris. 01512_ Acquired 8 matter. 01514_ K-01 Serf collects debris. 01518_ Acquired 26 matter. 01526_ Acquired 30 matter. 01534_ Extracted 13 matter. 01534_ R-06 Scavenger collects Med. Matter Pod. 01537_ as-46535 sneak attacks. 01543_ Imp. Light Armor Plating destroyed. 01549_ Lgt. Treads destroyed. Map ----- +----------------------------------------------------+ | | | | | | | | | | | | | | | | | | | | | | | | | | | | | | | | | | | | | | | ?????????????????????????????????????????????????? | | ?????????????????????????????????????????????????? | | ???????????????????#?????????????????????????????? | | ?????????????????### #######?????????????###?????? | | ???????###???????# #????????????## #?????? | | ??????## ##?????# #????????????# ##????? | | ??????# ##???# @ #???????????## #??### | | ??????# ##?# ###a#????????#### #?## | | ???????# #?# ??????# #???????## #### | | ????????# #???????????#=#???????# ##?# | | ?????????# #??????######!#??????## ##??# | | ?????????## #?????## ## #????### #???# | | ?#####????# ##?????# #*###### #???# | | ## ##???# #???#### """ =! ##???## | | # ##### ##### """ = ####?????## | | ## """ ###### ! ##?????????# | | ## ### ##### ## #???# ! ##??????????## | | ## #?# #??# ## #??## ##????????????## | | #?# #?# ## ##?## ##?????????????# | | #####?# ## ######??# *% ##????????????# | | ###????## #???????# """ ##???????????# | | ##???????# ##???????# """ #???????????? | | ????????## ######????????# """ #???????????? | | ??????### ##?????????????# ###########?? | | ?????## ##?????????????## ## ##? | | ?????# #####??????????# ## ## ## ## | | ?????# ! #??????????#%###=# #% # | | ###### =## #??????????# # #!# # | | $ #?????????????# # #=# # # | | #?????????????# # #%# # ## | | ######### ### ??? # #%# # ### | +----------------------------------------------------+ Best States ------------- Heat Dissipation 25 Energy Generation 14 Energy Capacity 250 Matter Stores 300 Matter Capacity 300 Sight Range 16 Terrain Scan Density 10 Armor Coverage 150 Evasion (%) 40 Recoil Reduction 2 Item Schematics ----------------- None Robot Schematics ------------------ None Fabricated ------------ Nothing Repaired ---------- Nothing Studied --------- None Alien Tech Used ----------------- None Achievements -------------- None Challenges ------------ None Game ------ Seed CooledImpactHammer Manual? 0 Play Time 00:10:47 Cumulative 428.6 hours Start 2026.07.03 @ 20:10:28 End 2026.07.03 @ 20:24:01 Sessions 1 Manual Loads 0 Difficulty Rogue Special Mode None Game No. 314 Rogue 314 Adventurer 0 Explorer 0 Win Type - Total 9 Types 4/0/3/2/0/0/0/0/0/0 Lore% 78 Gallery% 73 Achievement% 54 Wizard Run 0 Options --------- Layout 2 ASCII 0 Keyboard 1 Movement Vi Keybinds 0 Fullscreen 2 Font 32/SmallcapsGlow Map View 77x44 Zoom Use 0% Tactical HUD 1 Map Filters NONE Filters NONE Steam 1 RUN: 5353c6a0-31cb-43c8-a6a2-7cd17dc82534